bitfinex/quotes_ETHUSD_20250711
["timestamp","ask_amount","ask_price","bid_price","bid_amount"]
[1752195666834,1.4221,2934.1,2932.8,0.55]
[1752195667036,5.363,2934.0,2933.0,3.95945326]
[1752195667357,5.363,2934.0,2933.3,11.3422]
[1752195667520,1.4221,2934.5,2933.4,0.88583005]
[1752195667724,1.60912,2934.5,2933.5,0.4319]
[1752195667947,9.5951,2934.9,2933.5,0.46598897]
[1752195668158,1.4221,2934.9,2933.9,1.3422]
[1752195668483,5.366,2934.8,2934.1,10.0]
[1752195668771,1.5917,2934.9,2934.1,10.0]
[1752195668955,5.366,2934.7,2934.2,0.4319]
[1752195669161,1.5917,2934.9,2934.3,0.4319]
[1752195669551,0.1696,2934.9,2934.3,0.4319]
[1752195669863,5.367,2935.1,2934.3,10.4319]
[1752195670166,6.04119,2935.1,2934.4,0.4319]
[1752195670969,6.04119,2935.1,2934.5,1.4379]
[1752195670970,0.67419,2935.1,2934.5,1.4379]
[1752195672234,4.0011,2935.6,2934.6,0.4319]
[1752195672235,5.363,2935.3,2934.6,0.4319]
[1752195672965,5.363,2935.3,2934.2,1.8698]
[1752195672966,0.4481,2935.2,2934.2,1.8698]
[1752195673169,1.389,2934.8,2933.7,0.4319]
[1752195673467,5.8121,2934.7,2933.7,0.4319]
[1752195673667,0.72011,2934.6,2933.7,0.4319]
[1752195674064,5.364,2934.5,2933.7,0.4319]
[1752195674439,1.389,2934.8,2933.7,0.4319]
[1752195674635,1.389,2934.8,2933.8,0.03408548]
[1752195674842,5.364,2934.7,2933.9,0.4319]
[1752195675359,1.389,2934.8,2933.9,0.4319]
[1752195675532,5.362,2934.7,2933.9,0.4319]
[1752195675959,1.389,2934.8,2933.9,0.4319]
[1752195676167,1.3241,2935.1,2934.0,0.55]
[1752195676368,5.5306,2935.0,2934.1,1.851]
[1752195678348,0.4481,2934.9,2934.1,1.4191]
[1752195678540,0.58091,2934.8,2934.1,1.4191]
[1752195679741,0.58091,2934.8,2933.8,1.4465]
[1752195680076,1.02901,2934.8,2933.8,1.4465]
[1752195680584,5.358,2934.7,2933.9,0.4698]
[1752195681269,5.358,2934.7,2934.0,10.0]
[1752195681473,0.1696,2934.8,2934.1,0.4698]
[1752195681687,5.5256,2934.9,2934.1,0.4698]
[1752195681857,6.21157,2934.9,2934.1,0.4698]
[1752195682244,0.90879648,2935.5,2934.4,0.55]
[1752195682455,2.22,2935.6,2934.5,0.50387735]
[1752195682764,2.22,2935.6,2934.6,0.03407619]
[1752195682971,2.22,2935.6,2934.7,0.4698]
[1752195683280,2.22,2935.6,2934.8,1.4634]
[1752195683581,2.22,2935.6,2934.8,1.9332]
[1752195684555,0.7577,2935.5,2934.8,1.9332]
[1752195685191,1.8765,2935.4,2934.3,0.4698]
[1752195685600,1.8765,2935.4,2934.3,0.50387967]
[1752195685899,5.357,2935.3,2934.3,0.4698]
[1752195686111,5.357,2935.3,2934.4,0.55]
[1752195686253,0.7577,2935.5,2934.6,1.9813]
[1752195686453,2.22,2935.6,2934.7,0.50387503]
[1752195686892,2.22,2935.6,2934.7,0.4698]
[1752195687666,2.22,2935.6,2934.8,0.03407387]
[1752195687880,2.57718,2935.6,2934.9,0.4698]
[1752195688087,3.02818,2935.6,2934.6,1.9011]
[1752195688891,2.57718,2935.6,2934.7,0.4698]
[1752195689362,0.4215861,2935.5,2934.7,0.4698]
[1752195690696,0.8725861,2935.5,2934.6,1.4313]
[1752195690858,1.9014,2935.4,2934.2,1.8595]
[1752195691059,5.805,2935.3,2934.2,1.8595]
[1752195691388,0.451,2935.2,2934.2,1.3897]
[1752195691594,0.5805,2935.1,2934.2,1.3897]
[1752195692166,0.451,2935.0,2934.2,1.3897]
[1752195692367,1.3475,2934.9,2933.9,1.3628]
[1752195692600,0.451,2934.8,2933.9,1.3628]
[1752195692769,0.17985,2934.7,2933.9,1.3628]
[1752195694100,0.17985,2934.7,2934.0,0.4698]
[1752195695702,0.63085,2934.7,2933.9,1.3628]
[1752195697088,0.63085,2934.7,2933.7,0.4698]
[1752195697822,1.4106,2935.3,2934.2,0.55]
[1752195698003,1.4106,2935.3,2934.4,1.9228]
[1752195698204,1.4106,2935.3,2934.5,0.50387735]
[1752195698407,1.4106,2935.3,2934.5,0.4698]
[1752195698704,1.8616,2935.3,2934.4,1.3728]
[1752195698902,0.1696,2935.0,2934.4,1.3728]
[1752195699489,0.72176,2935.2,2934.5,0.4698]
[1752195699672,1.4106,2935.3,2934.5,0.4698]
[1752195700909,1.8616,2935.3,2934.1,11.8663]
[1752195701097,0.1696,2934.9,2934.1,1.8663]
[1752195701297,1.4087,2934.8,2934.1,1.8663]
[1752195701607,1.4087,2934.8,2933.8,5.355]
[1752195701608,0.451,2934.7,2933.7,1.4074]
[1752195701910,0.18597,2934.6,2933.7,1.4074]
[1752195702310,1.4087,2934.8,2933.9,10.0]
[1752195702511,1.4087,2934.8,2933.7,1.4074]
[1752195702512,1.9121,2935.2,2934.0,1.8731]
[1752195702688,0.1696,2934.9,2934.0,1.8731]
[1752195703584,0.1696,2934.9,2934.1,0.503882]
[1752195703781,1.4611,2935.2,2934.2,0.55]
[1752195703989,1.4611,2935.2,2934.4,10.0]
[1752195704293,1.4611,2935.2,2934.6,1.446]
[1752195704921,1.7911861,2935.5,2934.7,0.50387503]
[1752195705091,1.7911861,2935.5,2934.7,0.4698]
[1752195705623,1.3696,2935.5,2934.7,0.4698]
[1752195705794,2.22,2935.6,2934.8,0.55]
[1752195705991,2.22,2935.6,2934.9,0.50387271]
[1752195706191,2.22,2935.6,2935.2,1.4012]
[1752195706500,2.22,2935.6,2935.3,0.4698]
[1752195707031,2.22,2935.6,2935.4,0.4698]
[1752195707238,2.22,2935.6,2935.5,0.4698]
[1752195707395,2.22,2935.6,2935.2,1.43526922]
[1752195707595,2.22,2935.6,2935.2,1.871]
[1752195707986,2.22,2935.6,2935.3,0.4698]
[1752195708189,2.22,2935.6,2935.4,0.4698]
[1752195710233,2.22,2935.6,2935.5,0.4698]
[1752195711891,2.22,2935.6,2935.5,1.0198]
[1752195712321,2.22,2935.6,2935.5,16.3678]
[1752195714433,2.221,2935.6,2935.5,16.3678]
[1752195714910,2.221,2935.6,2935.5,10.0]
[1752195717913,2.58103,2935.6,2935.5,10.0]
[1752195720362,3.05283,2935.6,2935.5,10.0]
[1752195721138,2.221,2935.6,2935.5,10.0]
[1752195723528,2.6928,2935.6,2935.5,10.0]
[1752195724325,2.221,2935.6,2935.5,10.0]
[1752195724634,2.6928,2935.6,2935.5,10.0]
[1752195725532,4.025,2935.6,2935.5,10.0]
[1752195726048,3.9557,2935.6,2935.5,10.0]
[1752195726432,3.5532,2935.6,2935.5,10.0]
[1752195726628,2.221,2935.6,2935.5,10.0]
[1752195727042,1.3779,2935.5,2934.7,5.347]
[1752195727660,1.3779,2935.5,2934.8,5.347]
[1752195727870,0.94177,2935.4,2934.8,5.347]
[1752195728653,0.94177,2935.4,2934.6,0.4731]
[1752195728824,0.94177,2935.4,2934.7,5.347]
[1752195729028,0.94177,2935.4,2934.8,10.0]
[1752195729653,0.94177,2935.4,2934.6,0.4731]
[1752195729850,0.94177,2935.4,2934.8,10.0]
[1752195730828,0.94177,2935.4,2934.8,5.347]
[1752195731033,0.231967,2935.3,2934.8,5.347]
[1752195731235,0.231967,2935.3,2934.6,0.4731]
[1752195731236,0.703767,2935.3,2934.7,10.0]
[1752195731463,1.3408,2935.2,2934.7,5.347]
[1752195731660,0.4718,2935.1,2934.7,5.347]
[1752195732169,1.3408,2935.2,2934.7,5.347]
[1752195732383,1.3408,2935.2,2934.7,5.8201]
[1752195732541,1.3408,2935.2,2934.8,0.4731]
[1752195732897,1.3408,2935.2,2934.7,5.347]
[1752195732898,1.3408,2935.2,2934.9,0.4731]
[1752195733267,1.3408,2935.2,2934.7,5.347]
[1752195733565,1.4078,2935.5,2935.0,0.4731]
[1752195733773,2.21178,2935.5,2934.8,11.3236]
[1752195733939,2.221,2935.6,2935.1,0.4731]
[1752195734140,2.221,2935.6,2935.2,0.4731]
[1752195734449,2.221,2935.6,2935.3,0.4731]
[1752195734643,2.221,2935.6,2935.1,10.0]
[1752195734644,2.221,2935.6,2935.4,0.4731]
[1752195734845,0.4718,2935.5,2934.9,5.347]
[1752195735050,1.3273,2935.5,2935.0,10.0]
[1752195735446,1.3273,2935.5,2935.1,0.4731]
[1752195735775,2.221,2935.6,2935.2,0.4731]
[1752195735947,2.221,2935.6,2935.3,0.4731]
[1752195736268,2.221,2935.6,2935.4,0.4731]
[1752195737042,2.221,2935.6,2935.1,1.3434]
[1752195737043,2.221,2935.6,2935.1,1.8165]
[1752195737239,2.221,2935.6,2935.2,0.4731]
[1752195737442,2.221,2935.6,2935.3,0.4731]
[1752195738562,2.221,2935.6,2935.1,1.3434]
[1752195738768,2.221,2935.6,2935.4,0.4731]
[1752195739269,2.221,2935.6,2935.5,0.4731]
[1752195739772,2.221,2935.6,2935.3,0.4731]
[1752195740074,2.221,2935.6,2935.4,0.4731]
[1752195740573,2.221,2935.6,2935.1,1.3434]
[1752195740743,2.221,2935.6,2935.5,0.4299]
[1752195744753,2.221,2935.6,2935.5,10.0]
[1752195745351,2.221,2935.6,2935.5,10.4299]
[1752195747588,2.221,2935.6,2935.5,10.0]
[1752195747901,2.221,2935.6,2935.5,10.4299]
[1752195750372,2.221,2935.6,2935.1,1.3434]
[1752195750577,0.2221,2935.5,2935.3,10.0]
[1752195750782,3.5656,2935.6,2935.3,10.0]
[1752195751087,3.5656,2935.6,2935.3,5.345]
[1752195751299,3.5656,2935.6,2935.4,10.0]
[1752195752502,4.0252,2935.6,2935.4,10.0]
[1752195752970,4.0252,2935.6,2935.0,0.4299]
[1752195753175,4.0252,2935.6,2935.1,5.344]
[1752195753608,4.0252,2935.6,2935.2,10.0]
[1752195753908,3.5656,2935.6,2935.2,10.0]
[1752195754203,3.5656,2935.6,2935.2,10.4299]
[1752195755295,3.5656,2935.6,2935.2,10.0]
[1752195755475,2.221,2935.6,2935.4,10.0]
[1752195756612,2.221,2935.6,2935.4,10.4299]
[1752195756993,2.221,2935.6,2935.4,10.002]
[1752195758304,2.221,2935.6,2935.5,15.7739]
[1752195760013,2.221,2935.6,2935.5,16.3239]
[1752195761612,2.221,2935.6,2935.5,18.3639]
[1752195762108,2.221,2935.6,2935.5,23.09307468]
[1752195762603,1.8125411,2935.6,2935.5,23.09307468]
[1752195766011,42.41070358,2936.4,2936.3,13.8896]
[1752195766179,42.41070358,2936.4,2936.3,17.1916]
[1752195766381,42.41070358,2936.4,2936.3,17.6215]
[1752195767483,42.41070358,2936.4,2936.3,21.02714656]
[1752195767683,42.41070358,2936.4,2936.3,23.06714656]
[1752195767893,42.41070358,2936.4,2936.3,23.09244656]
[1752195768108,42.41070358,2936.4,2936.3,24.26643816]
[1752195768303,4.44,2936.6,2936.3,24.26643816]
[1752195768304,4.44,2936.6,2936.5,17.3561146]
[1752195768614,4.44,2936.6,2936.5,31.50466702]
[1752195768983,4.44,2936.6,2936.5,31.93456702]
[1752195769307,4.28957736,2936.6,2936.5,31.93456702]
[1752195771182,4.28957736,2936.6,2936.5,14.77723955]
[1752195771387,4.28957736,2936.6,2936.5,19.1706]
[1752195771598,4.28957736,2936.6,2936.5,19.7206]
[1752195772418,4.28957736,2936.6,2936.5,20.27465966]
[1752195773323,4.28957736,2936.6,2936.5,18.23365966]
[1752195774381,4.28957736,2936.6,2936.5,12.89465966]
[1752195774613,4.28957736,2936.6,2936.5,18.23365966]
[1752195774816,4.28957736,2936.6,2936.5,12.89465966]
[1752195775025,4.28957736,2936.6,2936.5,18.23365966]
[1752195775438,4.28957736,2936.6,2936.5,10.55405966]
[1752195775720,4.28957736,2936.6,2936.5,18.70665554]
[1752195776029,4.28957736,2936.6,2936.5,22.11207014]
[1752195776396,4.28957736,2936.6,2936.5,24.92416586]
[1752195777593,4.28957736,2936.6,2936.5,24.54870969]
[1752195778613,4.28957736,2936.6,2936.5,24.92416586]
[1752195778997,4.28957736,2936.6,2936.5,25.26446586]
[1752195779619,4.28957736,2936.6,2936.5,19.55100969]
[1752195779803,4.28957736,2936.6,2936.5,10.34375966]
[1752195780003,4.28957736,2936.6,2936.5,20.34375966]
[1752195780701,4.28957736,2936.6,2936.5,10.55405966]
[1752195780912,5.0526351,2936.6,2936.5,5.89105966]
[1752195781124,4.29057736,2936.6,2936.5,5.89105966]
[1752195781798,4.29057736,2936.6,2936.5,15.89105966]
[1752195783796,4.29057736,2936.6,2936.5,10.55405966]
[1752195783997,4.29057736,2936.6,2936.5,15.89105966]
[1752195787812,4.29057736,2936.6,2936.5,15.89005966]
[1752195788320,4.29057736,2936.6,2936.5,15.336]
[1752195792638,4.76367736,2936.6,2936.5,15.336]
[1752195792801,4.29057736,2936.6,2936.5,15.336]
[1752195794018,4.29057736,2936.6,2936.5,16.3391]
[1752195794301,4.29057736,2936.6,2936.5,23.53651048]
[1752195794701,4.29057736,2936.6,2936.5,24.3086062]
[1752195795849,3.88233112,2936.6,2936.5,24.3086062]
[1752195796039,3.43581386,2936.6,2936.5,24.3086062]
[1752195796244,3.43581386,2936.6,2936.5,26.7405342]
[1752195796426,3.43581386,2936.6,2936.5,24.3086062]
[1752195796427,2.61938277,2936.6,2936.5,24.3086062]
[1752195796631,2.61938277,2936.6,2936.5,28.53482358]
[1752195799219,2.61938277,2936.6,2936.5,22.82336741]
[1752195799420,2.61938277,2936.6,2936.5,28.15736741]
[1752195799620,2.61938277,2936.6,2936.5,23.93115003]
[1752195799931,2.61938277,2936.6,2936.5,14.64173543]
[1752195800250,2.61938277,2936.6,2936.5,21.7825146]
[1752195800551,2.61938277,2936.6,2936.5,21.2325146]
[1752195801055,2.61938277,2936.6,2936.5,16.4485146]
[1752195801233,2.61938277,2936.6,2936.5,21.7815146]
[1752195801575,2.61938277,2936.6,2936.5,28.17278403]
[1752195801919,2.61938277,2936.6,2936.5,28.56942358]
[1752195802118,2.61938277,2936.6,2936.5,28.57142358]
[1752195802352,2.61938277,2936.6,2936.5,28.4995922]
[1752195803232,2.61938277,2936.6,2936.5,24.6855062]
[1752195803441,2.61938277,2936.6,2936.5,23.56785415]
[1752195803748,1e-08,2936.7,2936.6,18.98059024]
[1752195803953,1e-08,2936.7,2936.6,32.50752023]
[1752195804151,0.00020001,2936.8,2936.7,24.11556868]
[1752195804351,0.00020001,2936.8,2936.7,30.48320411]
[1752195804530,0.00020001,2936.8,2936.7,26.06141811]
[1752195804935,0.001,2937.6,2937.5,13.95425531]
[1752195805159,0.001,2937.6,2937.5,19.28725531]
[1752195805657,0.001,2937.6,2937.5,19.72525531]
[1752195806051,0.001,2937.6,2937.5,19.81227898]
[1752195806237,0.001,2937.6,2937.5,21.85227898]
[1752195808464,0.001,2937.6,2937.5,18.44802367]
[1752195809072,0.4724,2937.6,2937.5,15.96802367]
[1752195809274,1.4718,2937.6,2937.5,15.96802367]
[1752195809970,0.001,2937.6,2937.5,15.96802367]
[1752195810567,0.001,2937.6,2937.5,15.96702367]
[1752195812247,0.6659,2937.6,2937.5,10.0]
[1752195812438,0.6659,2937.6,2937.5,15.33]
[1752195812840,1.9278,2937.6,2937.5,10.0]
[1752195813139,1.9278,2937.6,2937.5,15.33]
[1752195816187,1.9278,2937.6,2937.5,17.372]
[1752195816402,1.9278,2937.6,2937.5,15.33]
[1752195819102,1.4564,2937.6,2937.5,15.33]
[1752195819335,0.001,2937.6,2937.5,17.922]
[1752195821164,0.4724,2937.6,2937.5,17.922]
[1752195821365,0.001,2937.6,2937.5,15.33]
[1752195822699,0.001,2937.6,2937.5,10.0]
[1752195822881,0.001,2937.6,2937.5,15.328]
[1752195824179,0.001,2937.6,2937.5,21.32425531]
[1752195824380,0.001,2937.6,2937.5,21.76225531]
[1752195824591,0.001,2937.6,2937.5,22.53960736]
[1752195824792,4.289e-05,2937.6,2937.5,24.37464691]
[1752195826871,4.289e-05,2937.6,2937.5,32.37318964]
[1752195827496,4.289e-05,2937.6,2937.5,36.58719688]
[1752195828896,4.289e-05,2937.6,2937.5,32.37318964]
[1752195829105,0.001,2937.8,2937.7,7.39292355]
[1752195829302,0.001,2937.8,2937.7,13.9889]
[1752195829478,0.001,2937.8,2937.7,23.5535631]
[1752195829671,0.001,2937.8,2937.7,23.15692355]
[1752195830509,0.001,2937.8,2937.7,28.17012642]
[1752195831208,0.001,2937.8,2937.7,23.96094227]
[1752195831700,0.001,2937.8,2937.7,28.56676597]
[1752195832008,2.221,2938.6,2938.2,7.41164428]
[1752195832207,2.221,2938.6,2938.2,31.17134429]
[1752195832429,2.221,2938.6,2938.2,31.9754494]
[1752195832724,2.221,2938.6,2938.5,21.08032181]
[1752195832876,2.221,2938.6,2938.5,23.17063636]
[1752195833124,2.221,2938.6,2938.5,24.0142592]
[1752195833387,1.11,2939.0,2938.9,14.0459]
[1752195833708,1.11,2939.0,2938.9,25.84371591]
[1752195833908,1.11,2939.0,2938.9,31.21257636]
[1752195834677,1.11,2939.0,2938.9,12.592]
[1752195834907,1.11,2939.0,2938.9,17.916]
[1752195835130,1.9973,2939.0,2938.9,10.0]
[1752195835279,1.469,2938.9,2938.6,2.042]
[1752195835472,1.9122,2938.9,2938.8,12.042]
[1752195835675,1.9122,2938.9,2938.8,10.0]
[1752195836175,1.9122,2938.9,2938.3,0.55]
[1752195836478,1.5541,2939.0,2937.7,8.163]
[1752195836479,1.4645,2938.7,2937.7,8.163]
[1752195836783,0.4432,2938.6,2938.0,0.55]
[1752195836988,0.4432,2938.6,2938.2,10.0]
[1752195837209,0.4432,2938.6,2938.4,10.0]
[1752195837425,0.19077,2938.6,2938.4,10.0]
[1752195837576,1.4645,2938.7,2938.6,10.0]
[1752195837778,1.4645,2938.7,2938.6,5.323]
[1752195838087,2.496,2939.0,2938.7,10.55]
[1752195838429,2.496,2939.0,2938.9,10.0]
[1752195839005,2.9392,2939.0,2938.9,10.0]
[1752195839589,1.3943,2938.9,2938.1,2.042]
[1752195839791,0.4432,2938.8,2938.2,5.322]
[1752195840414,0.4432,2938.8,2938.3,0.03403328]
[1752195840708,0.4432,2938.8,2938.2,5.322]
[1752195840709,1.3443,2938.7,2938.5,10.0]
[1752195840916,0.4432,2938.6,2938.5,15.322]
[1752195841220,0.4432,2938.6,2938.5,10.0]
[1752195841391,1.3443,2938.7,2938.6,10.0]
[1752195841713,1.3443,2938.7,2938.5,10.0]
[1752195841915,1.3443,2938.7,2937.9,10.55]
[1752195842122,0.4432,2938.6,2938.1,10.55]
[1752195842327,0.4432,2938.6,2938.3,10.55]
[1752195842480,0.4432,2938.6,2938.4,5.35603212]
[1752195842684,0.4432,2938.6,2938.5,10.0]
[1752195843138,1.3443,2938.7,2938.5,10.0]
[1752195843283,1.3443,2938.7,2938.6,15.322]
[1752195843484,1.11,2939.0,2938.7,10.55]
[1752195843688,1.11,2939.0,2938.9,13.95263363]
[1752195844095,1.11,2939.0,2938.9,15.75253363]
[1752195844319,1.11,2939.0,2938.9,17.79453363]
[1752195845020,1.11,2939.0,2938.9,18.19642951]
[1752195845223,0.70209266,2939.0,2938.9,18.19642951]
[1752195846023,0.70209266,2939.0,2938.9,1.9084]
[1752195846316,0.70209266,2939.0,2938.9,20.63203363]
[1752195846791,0.70209266,2939.0,2938.9,17.2294]
[1752195846990,0.70209266,2939.0,2938.9,15.871]
[1752195847518,0.70209266,2939.0,2938.9,19.27363363]
[1752195847719,0.70209266,2939.0,2938.9,16.3125]
[1752195847922,0.70209266,2939.0,2938.9,15.871]
[1752195849122,0.70209266,2939.0,2938.9,21.75713363]
[1752195850235,0.70209266,2939.0,2938.9,19.71513363]
[1752195851216,0.70209266,2939.0,2938.9,16.43613363]
[1752195851411,0.70209266,2939.0,2938.9,21.75613363]
[1752195854625,0.70209266,2939.0,2938.9,21.31463363]
[1752195854827,0.70209266,2939.0,2938.9,21.75613363]
[1752195855335,0.29418031,2939.0,2938.9,22.15802951]
[1752195855537,0.29418031,2939.0,2938.9,27.08374292]
[1752195855906,0.29418031,2939.0,2938.9,31.49232951]
[1752195856516,0.29418031,2939.0,2938.9,31.09043363]
[1752195858037,0.29418031,2939.0,2938.9,31.09043363]
[1752195859824,0.29418031,2939.0,2938.9,25.77043363]
[1752195860029,0.29418031,2939.0,2938.9,31.08843363]
[1752195860536,0.29418031,2939.0,2938.9,23.10843363]
[1752195860935,0.29418031,2939.0,2938.9,23.51032951]
[1752195861152,0.29418031,2939.0,2938.9,26.36600151]
[1752195861355,0.29418031,2939.0,2938.9,26.20151551]
[1752195861956,0.29418031,2939.0,2938.9,31.99032951]
[1752195862734,0.29418031,2939.0,2938.9,24.01032951]
[1752195863505,0.29418031,2939.0,2938.9,28.21953773]
[1752195863706,0.29418031,2939.0,2938.9,28.55983773]
[1752195863906,0.29418031,2939.0,2938.9,24.35062951]
[1752195864138,0.29418031,2939.0,2938.9,34.35562951]
[1752195864461,0.29418031,2939.0,2938.9,36.52151521]
[1752195864816,0.29418031,2939.0,2938.9,28.54151521]
[1752195865215,3.331,2939.2,2938.9,28.54151521]
[1752195865216,3.21730295,2939.2,2939.1,2.592]
[1752195865421,3.21730295,2939.2,2939.1,30.66554482]
[1752195865624,3.21730295,2939.2,2939.1,31.10234482]
[1752195866849,3.21730295,2939.2,2939.1,35.54418214]
[1752195868973,3.21730295,2939.2,2939.1,2.29295162]
[1752195869258,3.21730295,2939.2,2939.1,4.19250063]
[1752195869419,3.21730295,2939.2,2939.0,2.07602517]
[1752195869420,3.68730295,2939.2,2939.0,2.07602517]
[1752195869758,3.21730295,2939.2,2939.1,5.316]
[1752195870159,4.65020295,2939.2,2939.1,5.316]
[1752195870465,5.12020295,2939.2,2939.1,5.316]
[1752195870637,5.12020295,2939.2,2939.1,5.315]
[1752195871021,5.12020295,2939.2,2939.1,5.865]
[1752195871219,5.12020295,2939.2,2939.1,7.907]
[1752195872441,5.12020295,2939.2,2939.1,2.592]
[1752195872642,5.12020295,2939.2,2939.1,7.908]
[1752195873573,3.21730295,2939.2,2939.1,17.908]
[1752195874064,3.68730295,2939.2,2939.1,17.908]
[1752195875259,3.27937381,2939.2,2939.1,17.908]
[1752195875460,2.80937381,2939.2,2939.1,17.908]
[1752195877062,3.27937381,2939.2,2939.1,17.908]
[1752195877571,2.80937381,2939.2,2939.1,17.908]
[1752195878969,2.80937381,2939.2,2939.1,21.31040209]
[1752195879149,2.80937381,2939.2,2939.1,17.908]
[1752195880539,5.10843119,2939.2,2939.1,10.0]
[1752195880765,1.3612,2939.1,2938.9,0.002]
[1752195880976,1.8312,2939.1,2938.9,10.002]
[1752195881143,1.87204312,2939.1,2939.0,15.316]
[1752195881465,1.3612,2939.1,2939.0,15.316]
[1752195881645,1.8312,2939.1,2939.0,15.316]
[1752195881840,2.80937381,2939.2,2939.1,12.592]
[1752195882056,2.80937381,2939.2,2939.1,16.43120209]
[1752195882846,2.80937381,2939.2,2939.1,15.99440209]
[1752195883214,2.80937381,2939.2,2939.1,12.592]
[1752195883544,2.80937381,2939.2,2939.1,15.99440209]
[1752195885744,2.80937381,2939.2,2939.1,16.43120209]
[1752195886059,2.80937381,2939.2,2939.1,17.78770209]
[1752195886374,2.80937381,2939.2,2939.1,21.98020272]
[1752195886556,2.80937381,2939.2,2939.1,17.78770209]
[1752195886991,2.80937381,2939.2,2939.1,23.10270209]
[1752195887487,2.40148979,2939.2,2939.1,23.10270209]
[1752195887689,2.40148979,2939.2,2939.1,21.30940209]
[1752195887876,2.40148979,2939.2,2939.1,25.51617438]
[1752195888076,2.40148979,2939.2,2939.1,16.79877229]
[1752195888387,2.40148979,2939.2,2939.1,22.11377229]
[1752195888687,2.40148979,2939.2,2939.1,17.907]
[1752195891099,2.40148979,2939.2,2939.0,0.002]
[1752195891100,1.3586,2939.1,2939.0,0.002]
[1752195891257,1.7922,2939.1,2939.0,0.002]
[1752195893582,1.7922,2939.1,2938.9,0.002]
[1752195893783,0.4336,2939.0,2938.9,0.002]
[1752195893989,1.8279,2939.0,2938.9,0.002]
[1752195894172,1.8279,2939.0,2937.9,0.002]
[1752195894173,1.3943,2938.9,2937.9,0.002]
[1752195894375,1.8279,2938.9,2937.9,0.002]
[1752195894582,1.3943,2938.7,2937.9,0.002]
[1752195894911,1.3026,2938.5,2937.9,0.002]
[1752195895273,0.4336,2938.4,2937.9,0.002]
[1752195895473,1.3026,2938.3,2937.9,0.002]
[1752195895884,1.3026,2938.1,2937.9,0.002]
[1752195896102,0.4336,2938.2,2937.9,0.002]
[1752195896103,1.47622,2938.0,2937.9,0.002]
[1752195896300,1.3026,2938.0,2937.9,0.002]
[1752195896501,1.3799,2938.2,2937.9,0.002]
[1752195896817,1.3799,2938.5,2938.1,10.55]
[1752195897108,1.8135,2938.5,2938.1,10.55]
[1752195897608,0.4336,2938.4,2938.1,10.55]
[1752195897902,0.4336,2938.3,2938.0,5.316]
[1752195898115,0.4336,2938.3,2937.9,0.002]
[1752195898116,1.3753,2938.2,2937.9,0.552]
[1752195898284,1.3753,2938.2,2937.9,10.552]
[1752195898608,0.4336,2938.1,2937.9,10.552]
[1752195898813,0.4336,2938.0,2937.9,10.002]
[1752195899175,0.4336,2938.0,2937.9,0.002]
[1752195899176,1.8027,2938.0,2937.9,0.002]
[1752195903405,1.98297,2938.0,2937.9,0.002]
[1752195907487,1.8027,2938.0,2937.9,0.002]
[1752195907927,1.3691,2938.0,2937.9,0.002]
[1752195908088,0.4336,2938.6,2937.9,0.002]
[1752195908417,0.4336,2938.3,2937.9,0.002]
[1752195908918,0.4336,2938.2,2937.9,0.002]
[1752195909123,1.374,2938.5,2937.9,0.002]
[1752195909327,1.8076,2938.5,2937.9,0.002]
[1752195909525,0.4336,2938.4,2937.9,0.002]
[1752195909931,0.4336,2938.3,2937.9,0.002]
[1752195910625,1.374,2938.5,2937.9,0.002]
[1752195910626,0.4336,2938.2,2937.9,0.002]
[1752195912150,1.374,2938.5,2937.9,3.0687]
[1752195912422,0.4336,2939.0,2938.2,10.0]
[1752195912628,0.87904388,2939.0,2938.4,10.0]
[1752195914418,0.4336,2939.0,2938.4,10.0]
[1752195915538,1.3792,2939.1,2938.6,11.3976]
[1752195915695,1.3792,2939.1,2938.6,16.7146]
[1752195916332,1.3792,2939.1,2938.6,15.317]
[1752195916499,0.4336,2939.0,2938.6,15.317]
[1752195917403,0.4336,2939.0,2938.6,5.317]
[1752195918415,1.3792,2939.1,2938.6,5.317]
[1752195918615,1.8128,2939.1,2938.6,5.317]
[1752195918800,0.4336,2939.0,2938.6,5.316]
[1752195920534,0.4348,2938.9,2938.6,5.316]
[1752195920912,0.4348,2938.9,2938.6,10.0]
[1752195922034,0.4348,2938.8,2938.0,1.4148]
[1752195922241,0.4348,2938.8,2938.2,10.0]
[1752195923041,0.4348,2938.8,2937.9,0.002]
[1752195923042,1.3873,2938.7,2937.9,0.002]
[1752195923206,0.18221,2938.6,2937.9,5.318]
[1752195923407,0.61701,2938.6,2937.9,5.318]
[1752195923726,0.61701,2938.6,2938.0,10.0]
[1752195924146,1.7501,2938.5,2938.0,10.0]
[1752195924350,1.3153,2938.5,2938.0,10.0]
[1752195924634,0.4348,2938.4,2938.0,10.0]
[1752195924814,0.4348,2938.3,2938.0,10.0]
[1752195927207,1.7501,2938.5,2938.0,10.0]
[1752195927410,1.92511,2938.5,2938.0,10.0]
[1752195927715,0.4348,2938.4,2938.0,10.0]
[1752195927920,0.4348,2938.3,2938.0,10.0]
[1752195928539,0.4348,2938.3,2937.9,0.002]
[1752195928720,0.4348,2938.3,2938.0,10.0]
[1752195929038,1.49031,2938.5,2938.0,10.0]
[1752195929039,1.92511,2938.5,2938.0,10.0]
[1752195929364,0.627311,2938.4,2937.9,0.002]
[1752195929563,1.3452,2938.3,2937.9,0.002]
[1752195929867,1.3253,2938.2,2937.9,0.002]